fUST/lending_fUST_20260213
["ID","MTS","AMOUNT","RATE_DAILY","PERIOD"]
[405296486,1770963039422,-500.0,0.0003726,5]
[405296487,1770963039432,-500.0,0.0003726,5]
[405296488,1770963039442,-1036.45,0.0003726,5]
[405296489,1770963039452,-500.0,0.0003726,5]
[405296490,1770963039462,-500.0,0.0003726,5]
[405296491,1770963039472,-1555.59,0.0003726,5]
[405296492,1770963039482,-500.0,0.0003726,5]
[405296493,1770963039491,-822.96,0.0003726,5]
[405296494,1770963039502,-3366.16,0.0003726,5]
[405296495,1770963039512,-682.91,0.0003726,2]
[405296496,1770963039522,-624.99,0.0003726,2]
[405296497,1770963039532,-500.0,0.0003726,5]
[405296498,1770963039545,-168.0,0.00037328,7]
[405296499,1770963039555,-1141.870273,0.00037446,2]
[405296500,1770963039565,-168.0,0.00037462,2]
[405296501,1770963039575,-712.0,0.00037477,11]
[405296502,1770963039585,-200.0,0.000375,7]
[405296503,1770963039595,-400.0,0.000375,7]
[405296504,1770963039605,-500.0,0.00037533,2]
[405296505,1770963039616,-554.91,0.00037534,5]
[405296506,1770963039626,-541.09,0.00037534,5]
[405296507,1770963039636,-500.0,0.00037534,5]
[405296508,1770963039647,-500.0,0.00037534,5]
[405296509,1770963039657,-1036.45,0.00037534,5]
[405296511,1770963039667,-500.0,0.00037534,5]
[405296513,1770963039677,-500.0,0.00037534,5]
[405296514,1770963039687,-1555.59,0.00037534,5]
[405296515,1770963039697,-500.0,0.00037534,5]
[405296516,1770963039707,-822.96,0.00037534,5]
[405296517,1770963039717,-3366.16,0.00037534,5]
[405296518,1770963039727,-682.91,0.00037534,2]
[405296519,1770963039736,-624.99,0.00037534,2]
[405296520,1770963039747,-500.0,0.00037534,5]
[405296521,1770963039756,-168.0,0.00037595,7]
[405296522,1770963039766,-424.0,0.00037656,2]
[405296523,1770963039776,-723.0,0.00037656,2]
[405296524,1770963039787,-712.0,0.00037774,11]
[405296525,1770963039798,-554.91,0.00037808,5]
[405296526,1770963039810,-541.09,0.00037808,5]
[405296527,1770963039821,-418.14611582,0.00037808,5]
[405296528,1770963039832,-500.0,0.00037808,5]
[405296529,1770963039842,-1036.45,0.00037808,5]
[405296530,1770963039850,-500.0,0.00037808,5]
[405296531,1770963039860,-500.0,0.00037808,5]
[405296532,1770963039869,-1555.59,0.00037808,5]
[405296533,1770963039879,-500.0,0.00037808,5]
[405296534,1770963039888,-822.96,0.00037808,5]
[405296535,1770963039897,-3366.16,0.00037808,5]
[405296536,1770963039907,-682.91,0.00037808,2]
[405296537,1770963039917,-624.99,0.00037808,2]
[405296538,1770963039926,-500.0,0.00037808,5]
[405296539,1770963039936,-500.0,0.0003781,2]
[405296540,1770963039946,-770.31,0.00037811,2]
[405296541,1770963039956,-160.0,0.0003785,5]
[405296542,1770963039967,-954.04787655,0.000379,2]
[405296543,1770963039976,-168.0,0.00037973,120]
[405296544,1770963039986,-314.35113183,0.0003799,3]
[405296545,1770963039996,-500.0,0.00037999,2]
[405296546,1770963040005,-500.0,0.00037999,2]
[405296547,1770963040018,-500.0,0.00037999,2]
[405296548,1770963040028,-500.0,0.00037999,2]
[405296549,1770963040038,-493.75682308,0.00037999,2]
[405296550,1770963040230,-6.24317692,0.00037999,2]
[405296551,1770963040240,-38.37032971,0.00037999,2]
[405296552,1770963040253,-461.62967029,0.00037999,2]
[405296553,1770963040263,-339.50032971,0.00037999,2]
[405296554,1770963040331,-827.04,0.00035616,5]
[405296555,1770963040341,-656.72568641,0.0003589,5]
[405296556,1770963040417,-170.31431359,0.0003589,5]
[405296557,1770963040427,-72.75895018,0.00036164,5]
[405296590,1770963045634,-150.0,0.0002589,2]
[405296591,1770963045644,-177.0,0.0002789,2]
[405296592,1770963045653,-204.0,0.0002989,2]
[405296593,1770963045663,-500.0,0.00035616,5]
[405296594,1770963045673,-346.52864964,0.0003589,5]
[405296595,1770963045683,-754.28104982,0.00036164,5]
[405296596,1770963045692,-827.04,0.00036438,5]
[405296597,1770963045701,-827.04,0.00036712,5]
[405296598,1770963045710,-827.04,0.00036986,5]
[405296599,1770963045719,-827.04,0.0003726,5]
[405296600,1770963045729,-827.04,0.00037534,5]
[405296601,1770963045738,-827.04,0.00037808,5]
[405296602,1770963045748,-1371.99,0.0003799,10]
[405296603,1770963045757,-274.12366285,0.00037999,2]
[405296604,1770963045766,-569.0,0.00037999,30]
[405296605,1770963045775,-371.0,0.00038,120]
[405296606,1770963045785,-30583.84834558,0.00038,2]
[405296607,1770963045793,-42145.26370856,0.00038,2]
[405296608,1770963045805,-2680.87889995,0.00038,2]
[405296609,1770963045816,-6291.59798741,0.00038,2]
[405296611,1770963951202,-798.88261481,0.00030136,2]
[405296620,1770964047095,-202.80489987,0.0002589,2]
[405296621,1770964047116,-385.6992644,0.00028877,2]
[405296622,1770964054077,-542.95970604,0.00028877,2]
[405296623,1770964054098,-120.11738519,0.00030136,2]
[405296624,1770964054119,-1337.43969865,0.00030137,120]
[405296626,1770964165216,-819.96692239,0.00024953,2]
[405296627,1770964165243,-2842.59337896,0.00024953,2]
[405296628,1770964165264,-350.32471133,0.000275,2]
[405296645,1770964231683,-175.35573728,0.00032307,2]
[405296647,1770964231693,-230.65929359,0.00032307,2]
[405296752,1770964237822,-269.34070641,0.00032307,2]
[405296753,1770964237833,-500.0,0.00032307,2]
[405296754,1770964237844,-483.77601866,0.00032307,2]
[405296755,1770964237856,-742.81808302,0.00032308,2]
[405296756,1770964237868,-1887.7607828,0.00032309,2]
[405296757,1770964237880,-180.1644988,0.00032633,60]
[405296758,1770964237891,-426.0,0.00034404,30]
[405296759,1770964237903,-723.0,0.00035456,2]
[405296760,1770964237914,-424.0,0.00035456,2]
[405296761,1770964237925,-984.33998926,0.00035488,2]
[405296762,1770964237937,-3711.19312994,0.00035516,2]
[405296763,1770964237955,-7663.85917249,0.00035616,2]
[405296785,1770964244755,-1400.20670523,0.00035616,2]
[405296786,1770964244768,-7631.27172655,0.00035616,2]
[405296790,1770964245942,-7230.06125065,0.00035616,2]
[405296791,1770964245954,-350.34100275,0.00035616,5]
[405296792,1770964246002,-149.65899725,0.00035616,5]
[405296793,1770964246012,-500.0,0.00035616,5]
[405296794,1770964246025,-647.78,0.00035616,5]
[405296795,1770964246035,-500.0,0.00035616,5]
[405296796,1770964246045,-516.9,0.00035616,5]
[405296797,1770964246055,-972.24,0.00035616,5]
[405296798,1770964246066,-500.0,0.00035616,5]
[405296799,1770964246076,-514.35,0.00035616,5]
[405296800,1770964246086,-1323.06326235,0.00035616,5]
[405296812,1770964401517,10000.0,0.00024,2]
[405296813,1770964408427,10000.0,0.00024,2]
[405296814,1770964416473,2141.09705634,0.00024,2]
[405296815,1770964453940,10000.0,0.000235,2]
[405296816,1770964460869,10000.0,0.000235,2]
[405296818,1770964467330,10000.0,0.000235,2]
[405296821,1770964472969,10000.0,0.000235,2]
[405296822,1770964473043,303.10001603,0.000189,2]
[405296823,1770964473105,303.10001603,0.00019278,2]
[405296824,1770964473156,303.10001603,0.00019089,2]
[405296825,1770964473208,303.10001603,0.00019467,2]
[405296826,1770964473267,324.69531848,0.00019656,2]
[405296827,1770964479822,10000.0,0.000235,2]
[405296828,1770964486380,10000.0,0.000235,2]
[405296829,1770964492117,10000.0,0.000235,2]
[405296830,1770964524913,10000.0,0.000235,2]
[405296831,1770964531711,10000.0,0.000235,2]
[405296835,1770964545069,4110.0,0.000235,2]
[405296836,1770964586181,4091.74187789,0.000235,2]
[405296849,1770964763262,3228.74145316,0.000235,2]
[405296855,1770964895667,380.45473758,0.00013273,2]
[405296897,1770965064942,5000.0,0.000235,2]
[405296898,1770965087121,5000.0,0.000235,2]
[405296899,1770965101755,2943.62514633,0.000235,2]
[405296900,1770965109687,5000.0,0.000235,2]
[405296901,1770965117718,5000.0,0.000235,2]
[405296902,1770965125707,5000.0,0.000235,2]
[405296903,1770965135788,4100.0643424,0.000235,2]
[405296904,1770965141117,-673.79994905,0.00023949,2]
[405296905,1770965147009,2245.44814408,0.000235,2]
[405296906,1770965157514,5724.19,0.000235,2]
[405296956,1770965251167,-7.20005095,0.00023949,2]
[405296957,1770965251188,-152.96300219,0.0002395,2]
[405296958,1770965251207,-5044.0,0.0002395,2]
[405296959,1770965251226,-300.0,0.00023998,2]
[405296960,1770965251246,-500.0,0.00023999,2]
[405296961,1770965251266,-500.0,0.00023999,2]
[405296962,1770965251288,-178.34341703,0.00023999,2]
[405296963,1770965254094,-327.2802802,0.00023999,2]
[405296964,1770965254115,-367.35871447,0.00023999,2]
[405296989,1770965347127,-534.51279844,0.00023759,2]
[405296990,1770965347150,-132.64128553,0.00023999,2]
[405296991,1770965347172,-239.06862314,0.00023999,2]
[405296992,1770965347196,-193.22984701,0.00023999,2]
[405296993,1770965347216,-53.17892305,0.00023999,2]
[405296994,1770965348088,-121.50550242,0.00023999,2]
[405296995,1770965348109,-300.0,0.00023999,2]
[405296996,1770965348129,-7858.90294366,0.00024,2]
[405296997,1770965348148,-10000.0,0.00024,2]
[405296998,1770965348169,-31413.12314906,0.00024,2]
[405296999,1770965359089,-5000.0,0.0002376,2]
[405297000,1770965359109,-5177.7273342,0.00024,2]
[405297001,1770965368091,-13409.14951674,0.00024,2]
[405297002,1770965368112,-3906.51134346,0.00025926,2]
[405297003,1770965368133,-420.0,0.00026026,2]
[405297004,1770965368152,-150.0,0.00027397,5]
[405297005,1770965368171,-150.0,0.00027397,5]
[405297006,1770965368190,-252.58314908,0.00027945,5]
[405297007,1770965368209,-254.35572381,0.00027945,5]
[405297008,1770965368230,-240.0,0.00028223,2]
[405297009,1770965368251,-3906.51134346,0.00028288,2]
[405297010,1770965368271,-2612.12337922,0.00030649,2]
[405297100,1770965438130,-500.0,0.00023999,2]
[405297101,1770965438140,-5000.0,0.00024953,2]
[405297102,1770965438150,-1501.68843429,0.00030549,2]
[405297103,1770965438159,-1294.38796424,0.00030649,2]
[405297104,1770965438170,-272.055718,0.00032053,2]
[405297105,1770965438179,-742.81808302,0.00032143,2]
[405297106,1770965438189,-500.0,0.00032308,2]
[405297107,1770965438199,-173.0,0.00033,14]
[405297108,1770965438209,-3906.51134346,0.00033011,2]
[405297109,1770965438219,-305.85,0.000331,7]
[405297110,1770965438228,-402.023035,0.00033844,2]
[405297111,1770965438238,-320.0,0.00034404,30]
[405297112,1770965438248,-173.0,0.00034521,30]
[405297113,1770965438258,-402.023035,0.00035269,2]
[405297114,1770965438268,-7230.06125065,0.00035269,2]
[405297115,1770965438279,-3906.51134346,0.00035373,2]
[405297116,1770965438289,-500.0,0.00035614,2]
[405297117,1770965438299,-500.0,0.00035614,2]
[405297118,1770965438309,-500.0,0.00035614,2]
[405297119,1770965438319,-500.0,0.00035615,2]
[405297120,1770965438328,-1000.0,0.00035616,2]
[405297121,1770965438339,-500.0,0.00035616,2]
[405297122,1770965438349,-500.0,0.00035616,2]
[405297123,1770965438362,-500.0,0.00035616,5]
[405297124,1770965438372,-500.0,0.00035616,2]
[405297125,1770965438382,-500.0,0.00035616,5]
[405297126,1770965438392,-1000.0,0.00035616,2]
[405297127,1770965438401,-500.0,0.00035616,5]
[405297128,1770965438411,-1092.97,0.00035616,5]
[405297129,1770965438421,-500.0,0.00035616,5]
[405297130,1770965438432,-931.73,0.00035616,5]
[405297131,1770965438442,-500.0,0.00035616,5]
[405297132,1770965438451,-500.0,0.00035616,5]
[405297133,1770965438461,-2048.72,0.00035616,5]
[405297134,1770965438470,-500.0,0.00035616,5]
[405297135,1770965438479,-701.57,0.00035616,5]
[405297136,1770965438489,-511.49550618,0.00035616,5]
[405297137,1770965438499,-565.75,0.00035616,2]
[405297138,1770965438509,-500.0,0.00035671,5]
[405297139,1770965438517,-500.0,0.00035726,5]
[405297140,1770965438526,-500.0,0.00035781,5]
[405297141,1770965438535,-500.0,0.00035835,5]
[405297142,1770965438544,-500.0,0.00035874,2]
[405297143,1770965438553,-196.71,0.00035874,2]
[405297144,1770965438562,-633.0,0.00035874,2]
[405297145,1770965438571,-1376.0,0.00035874,2]
[405297146,1770965438580,-424.0,0.00035874,2]
[405297147,1770965438589,-723.0,0.00035874,2]
[405297148,1770965438598,-2509.31,0.00035888,120]
[405297149,1770965438608,-500.0,0.00035888,2]
[405297150,1770965438617,-1000.0,0.0003589,2]
[405297151,1770965438626,-500.0,0.0003589,2]
[405297152,1770965438636,-151.0,0.0003589,31]
[405297153,1770965438645,-500.0,0.0003589,2]
[405297154,1770965438655,-500.0,0.0003589,5]
[405297155,1770965438665,-515.09875929,0.0003589,2]
[405297156,1770965438674,-500.0,0.0003589,5]
[405297157,1770965438683,-585.85486621,0.0003589,2]
[405297158,1770965438692,-500.0,0.0003589,5]
[405297159,1770965438702,-1092.97,0.0003589,5]
[405297160,1770965438712,-500.0,0.0003589,5]
[405297161,1770965438722,-931.73,0.0003589,5]
[405297162,1770965438732,-500.0,0.0003589,5]
[405297163,1770965438744,-500.0,0.0003589,5]
[405297164,1770965438764,-2048.72,0.0003589,5]
[405297165,1770965438774,-500.0,0.0003589,5]
[405297166,1770965438784,-701.57,0.0003589,5]
[405297167,1770965438794,-565.75,0.0003589,2]
[405297168,1770965438804,-518.0,0.0003589,5]
[405297169,1770965438813,-500.0,0.00035945,5]
[405297170,1770965438823,-500.0,0.00036,5]
[405297171,1770965438833,-500.0,0.00036055,5]
[405297172,1770965438842,-1363.45941323,0.00036102,2]
[405297173,1770965438852,-500.0,0.00036109,5]
[405297174,1770965438861,-500.0,0.00036148,2]
[405297175,1770965438871,-500.0,0.00036162,2]
[405297176,1770965438881,-500.0,0.00036163,2]
[405297177,1770965438891,-151.0,0.00036163,31]
[405297178,1770965438901,-500.0,0.00036164,2]
[405297179,1770965438911,-500.0,0.00036164,2]
[405297180,1770965438921,-500.0,0.00036164,5]
[405297181,1770965438931,-510.1591,0.00036164,2]
[405297182,1770965438940,-510.1591,0.00036164,3]
[405297183,1770965438950,-200.0018,0.00036164,5]
[405297184,1770965438960,-510.1591,0.00036164,2]
[405297185,1770965438970,-200.0,0.00036164,2]
[405297186,1770965438980,-510.1591,0.00036164,2]
[405297187,1770965438989,-500.0,0.00036164,5]
[405297188,1770965438999,-500.0,0.00036164,5]
[405297189,1770965439009,-1092.97,0.00036164,5]
[405297190,1770965439019,-500.0,0.00036164,5]
[405297191,1770965439029,-931.73,0.00036164,5]
[405297192,1770965439039,-500.0,0.00036164,5]
[405297193,1770965439049,-500.0,0.00036164,5]
[405297194,1770965439059,-2048.72,0.00036164,5]
[405297195,1770965439068,-500.0,0.00036164,5]
[405297196,1770965439077,-701.57,0.00036164,5]
[405297197,1770965439087,-565.75,0.00036164,2]
[405297198,1770965439097,-500.0,0.00036164,5]
[405297199,1770965439107,-500.0,0.00036219,5]
[405297200,1770965439117,-176.0,0.00036247,30]
[405297201,1770965439127,-500.0,0.00036274,5]
[405297202,1770965439138,-267.996065,0.00036274,31]
[405297203,1770965439149,-172.0,0.00036326,2]
[405297204,1770965439159,-500.0,0.00036329,5]
[405297205,1770965439170,-172.0,0.0003633,120]
[405297206,1770965439180,-356.54660588,0.00036383,5]
[405297207,1770965439189,-508.4448852,0.00036422,2]
[405297208,1770965439199,-172.0,0.00036425,7]
[405297209,1770965439209,-633.41980092,0.00036437,2]
[405297210,1770965439219,-500.0,0.00036438,2]
[405297211,1770965439228,-500.0,0.00036438,2]
[405297212,1770965439238,-500.0,0.00036438,5]
[405297213,1770965439248,-500.0,0.00036438,5]
[405297214,1770965439258,-500.0,0.00036438,5]
[405297215,1770965439267,-1092.97,0.00036438,5]
[405297216,1770965439278,-500.0,0.00036438,5]
[405297217,1770965439290,-931.73,0.00036438,5]
[405297218,1770965439301,-500.0,0.00036438,5]
[405297219,1770965439311,-500.0,0.00036438,5]
[405297220,1770965439320,-2048.72,0.00036438,5]
[405297221,1770965439329,-500.0,0.00036438,5]
[405297222,1770965439338,-701.57,0.00036438,5]
[405297223,1770965439348,-565.75,0.00036438,2]
[405297224,1770965439361,-577.41216653,0.00036547,2]
[405297225,1770965439370,-874.32,0.00036553,3]
[405297226,1770965439379,-1143.32,0.00036553,10]
[405297227,1770965439389,-952.77,0.00036553,10]
[405297228,1770965439399,-793.98,0.00036553,10]
[405297229,1770965439409,-168.90162035,0.00036562,10]
[405297230,1770965439420,-3348.2747141,0.00036563,2]
[405297231,1770965439430,-36643.643341,0.00036563,2]
[405297232,1770965439440,-8725.7638069,0.00036563,2]
[405297233,1770965439451,-2000.0,0.00036603,2]
[405297234,1770965439461,-402.023035,0.00036693,2]
[405297235,1770965439471,-500.0,0.00036712,2]
[405297236,1770965439480,-500.0,0.00036712,2]
[405297237,1770965439489,-500.0,0.00036712,5]
[405297238,1770965439498,-500.0,0.00036712,5]
[405297239,1770965439506,-500.0,0.00036712,5]
[405297240,1770965439514,-1092.97,0.00036712,5]
[405297241,1770965439523,-500.0,0.00036712,5]
[405297242,1770965439533,-931.73,0.00036712,5]
[405297243,1770965439543,-500.0,0.00036712,5]
[405297244,1770965439553,-500.0,0.00036712,5]
[405297245,1770965439562,-2048.72,0.00036712,5]
[405297246,1770965439571,-500.0,0.00036712,5]
[405297247,1770965439580,-701.57,0.00036712,5]
[405297248,1770965439589,-565.75,0.00036712,2]
[405297249,1770965439599,-347.1618299,0.0003686,2]
[405297250,1770965439609,-305.85,0.000369,7]
[405297251,1770965439618,-500.0,0.00036986,2]
[405297252,1770965439627,-500.0,0.00036986,2]
[405297253,1770965439636,-500.0,0.00036986,5]
[405297254,1770965439646,-402.95066817,0.00036986,5]
[405297255,1770965439655,-500.0,0.00036986,5]
[405297256,1770965439665,-1092.97,0.00036986,5]
[405297257,1770965439674,-500.0,0.00036986,5]
[405297258,1770965439683,-931.73,0.00036986,5]
[405297259,1770965439692,-500.0,0.00036986,5]
[405297260,1770965439702,-500.0,0.00036986,5]
[405297261,1770965439711,-2048.72,0.00036986,5]
[405297262,1770965439720,-500.0,0.00036986,5]
[405297263,1770965439730,-701.57,0.00036986,5]
[405297264,1770965439739,-565.75,0.00036986,2]
[405297265,1770965439748,-4143.63878792,0.0003699,2]
[405297266,1770965439758,-168.0,0.00037001,2]
[405297267,1770965439767,-172.0,0.00037056,7]
[405297268,1770965439776,-173.0,0.00037105,2]
[405297269,1770965439786,-173.0,0.00037144,7]
[405297270,1770965439795,-500.0,0.0003726,2]
[405297271,1770965439804,-500.0,0.0003726,2]
[405297272,1770965439813,-500.0,0.0003726,5]
[405297273,1770965439822,-500.0,0.0003726,5]
[405297274,1770965439832,-1092.97,0.0003726,5]
[405297275,1770965439841,-500.0,0.0003726,5]
[405297277,1770965439851,-931.73,0.0003726,5]
[405297279,1770965439860,-500.0,0.0003726,5]
[405297281,1770965439869,-500.0,0.0003726,5]
[405297283,1770965439878,-2048.72,0.0003726,5]
[405297285,1770965439887,-500.0,0.0003726,5]
[405297287,1770965439896,-701.57,0.0003726,5]
[405297289,1770965439905,-565.75,0.0003726,2]
[405297291,1770965439914,-172.0,0.00037329,2]
[405297305,1770965440037,-172.0,0.00037411,120]
[405297307,1770965440047,-172.0,0.00037413,2]
[405297309,1770965440056,-500.0,0.00037534,2]
[405297311,1770965440065,-500.0,0.00037534,2]
[405297313,1770965440075,-500.0,0.00037534,5]
[405297315,1770965440084,-500.0,0.00037534,5]
[405297317,1770965440095,-1092.97,0.00037534,5]
[405297319,1770965440104,-500.0,0.00037534,5]
[405297321,1770965440114,-931.73,0.00037534,5]
[405297323,1770965440123,-500.0,0.00037534,5]
[405297325,1770965440132,-500.0,0.00037534,5]
[405297327,1770965440141,-2048.72,0.00037534,5]
[405297329,1770965440150,-500.0,0.00037534,5]
[405297331,1770965440159,-701.57,0.00037534,5]
[405297333,1770965440168,-565.75,0.00037534,2]
[405297335,1770965440177,-172.0,0.00037544,120]
[405297337,1770965440186,-371.37034397,0.00037571,2]
[405297339,1770965440196,-668.46661915,0.00037571,2]
[405297341,1770965440205,-1187.1967156,0.00037571,2]
[405297343,1770965440215,-342.29526345,0.00037571,2]
[405297345,1770965440224,-616.13147421,0.00037571,2]
[405297347,1770965440234,-1095.34484303,0.00037571,2]
[405297349,1770965440243,-224.80535863,0.00037571,2]
[405297351,1770965440252,-404.64964553,0.00037571,2]
[405297353,1770965440261,-718.65777045,0.00037571,2]
[405297355,1770965440271,-296.18035311,0.00037571,2]
[405297357,1770965440280,-338.49183213,0.00037571,2]
[405297359,1770965440289,-172.0,0.00037654,2]
[405297361,1770965440298,-712.0,0.0003768,11]
[405297363,1770965440307,-172.0,0.00037698,2]
[405297365,1770965440316,-151.0,0.000377,14]
[405297367,1770965440324,-172.0,0.00037708,2]
[405297369,1770965440334,-3906.51134346,0.00037735,2]
[405297371,1770965440343,-500.0,0.00037808,2]
[405297373,1770965440355,-499.97,0.00037808,2]
[405297375,1770965440364,-500.0,0.00037808,5]
[405297377,1770965440373,-500.0,0.00037808,5]
[405297379,1770965440382,-1092.97,0.00037808,5]
[405297381,1770965440392,-500.0,0.00037808,5]
[405297383,1770965440402,-931.73,0.00037808,5]
[405297386,1770965440411,-500.0,0.00037808,5]
[405297388,1770965440421,-500.0,0.00037808,5]
[405297390,1770965440431,-2048.72,0.00037808,5]
[405297392,1770965440440,-500.0,0.00037808,5]
[405297393,1770965440450,-701.57,0.00037808,5]
[405297395,1770965440459,-565.75,0.00037808,2]
[405297398,1770965440468,-172.0,0.00037811,2]
[405297399,1770965440477,-200.0,0.00037861,10]
[405297401,1770965440487,-487.0,0.00037861,2]
[405297404,1770965440496,-487.0,0.00037861,2]
[405297406,1770965440505,-487.0,0.00037861,2]
[405297408,1770965440515,-487.0,0.00037861,2]
[405297409,1770965440524,-487.0,0.00037861,2]
[405297412,1770965440533,-487.0,0.00037861,2]
[405297413,1770965440542,-487.0,0.00037861,2]
[405297416,1770965440552,-487.0,0.00037861,2]
[405297417,1770965440561,-734.35,0.00037861,2]
[405297419,1770965440570,-184243.89517752,0.00037862,2]
[405297422,1770965440580,-133967.0835239,0.00037862,2]
[405297424,1770965440590,-151.0,0.000379,15]
[405297425,1770965440599,-542.50362742,0.0003799,3]
[405297428,1770965440608,-328.39919638,0.0003799,3]
[405297429,1770965440617,-200.0,0.00037997,10]
[405297431,1770965440626,-500.0,0.00037998,30]
[405297433,1770965440636,-151.0,0.00037998,30]
[405297435,1770965440646,-250.0,0.00037998,30]
[405297437,1770965440656,-500.0,0.00037998,30]
[405297439,1770965440666,-156.587,0.00037998,30]
[405297441,1770965440675,-250.0,0.00037998,30]
[405297443,1770965440684,-500.0,0.00037998,30]
[405297445,1770965440692,-162.380719,0.00037998,30]
[405297447,1770965440702,-250.0,0.00037998,30]
[405297449,1770965440711,-500.0,0.00037998,30]
[405297451,1770965440719,-168.3888056,0.00037998,30]
[405297453,1770965440729,-250.0,0.00037998,30]
[405297455,1770965440738,-500.0,0.00037998,30]
[405297457,1770965440747,-250.0,0.00037998,30]
[405297459,1770965440756,-250.0,0.00037998,30]
[405297462,1770965440767,-250.0,0.00037998,30]
[405297463,1770965440776,-250.0,0.00037998,30]
[405297465,1770965440785,-174.61919141,0.00037998,30]
[405297466,1770965440794,-250.0,0.00037998,30]
[405297468,1770965440803,-500.0,0.00037998,30]
[405297469,1770965440812,-250.0,0.00037998,30]
[405297470,1770965440822,-250.0,0.00037998,30]
[405297471,1770965440831,-250.0,0.00037998,30]
[405297472,1770965440841,-250.0,0.00037998,30]
[405297473,1770965440850,-181.08010149,0.00037998,30]
[405297474,1770965440859,-250.0,0.00037998,30]
[405297475,1770965440869,-500.0,0.00037998,30]
[405297476,1770965440880,-250.0,0.00037998,30]
[405297477,1770965440888,-250.0,0.00037998,30]
[405297478,1770965440898,-187.78006526,0.00037998,30]
[405297479,1770965440907,-250.0,0.00037998,30]
[405297480,1770965440917,-250.0,0.00037998,30]
[405297481,1770965440928,-250.0,0.00037998,30]
[405297482,1770965440937,-250.0,0.00037998,30]
[405297483,1770965440946,-250.0,0.00037998,30]
[405297484,1770965440955,-250.0,0.00037998,30]
[405297485,1770965440965,-250.0,0.00037998,30]
[405297486,1770965440974,-250.0,0.00037998,30]
[405297487,1770965440983,-500.0,0.00037998,30]
[405297488,1770965440992,-250.0,0.00037998,30]
[405297489,1770965441002,-250.0,0.00037998,30]
[405297490,1770965441011,-250.0,0.00037998,30]
[405297491,1770965441021,-151.0,0.00037998,30]
[405297492,1770965441031,-250.0,0.00037998,30]
[405297493,1770965441040,-500.0,0.00037998,30]
[405297494,1770965441049,-250.0,0.00037998,30]
[405297495,1770965441059,-250.0,0.00037998,30]
[405297497,1770965441068,-250.0,0.00037998,30]
[405297499,1770965441077,-156.587,0.00037998,30]
[405297501,1770965441086,-250.0,0.00037998,30]
[405297503,1770965441095,-500.0,0.00037998,30]
[405297504,1770965441104,-250.0,0.00037998,30]
[405297506,1770965441114,-250.0,0.00037998,30]
[405297508,1770965441123,-250.0,0.00037998,30]
[405297510,1770965441133,-2000.0,0.00037998,30]
[405297511,1770965441143,-297.99542969,0.00037998,30]
[405297513,1770965441152,-250.0,0.00037998,30]
[405297515,1770965441161,-500.0,0.00037998,30]
[405297517,1770965441171,-2000.0,0.00037998,30]
[405297519,1770965441180,-250.0,0.00037998,30]
[405297521,1770965441191,-500.0,0.00037998,30]
[405297522,1770965441200,-2000.0,0.00037998,30]
[405297523,1770965441210,-250.0,0.00037998,30]
[405297524,1770965441219,-500.0,0.00037998,30]
[405297525,1770965441229,-2024.60901093,0.00037998,30]